[Event "FIDE WCCC Open-08 2024"]
[Site "Montesilvano"]
[Date "2024.11.18"]
[Round "3.31"]
[White "Reclik, Jakub"]
[Black "Ok, Miro"]
[Result "1-0"]
[ECO "B53"]
[WhiteElo "1458"]
[BlackElo "1656"]
[PlyCount "121"]
[EventDate "2024.11.18"]
[EventType "swiss"]
[EventCountry "ITA"]
[TimeControl "5400+30"]

1. e4 {[%emt 0:00:04]} c5 {[%emt 0:02:19]} 2. Nf3 {[%emt 0:00:28]} d6 {[%emt 0:00:43]} 3. d4 {[%emt 0:00:36]} cxd4 {[%emt 0:00:30]} 4. Qxd4 {[%emt 0:01:18]} Nc6 {[%emt 0:00:58]} 5. Bb5 {[%emt 0:00:06]} Bd7 {[%emt 0:00:56]} 6. Bxc6 {[%emt 0:00:26]} bxc6 {[%emt 0:00:55]} 7. Nc3 {[%emt 0:07:59]} Nf6 {[%emt 0:01:25]} 8. Bg5 {[%emt 0:01:45]} g6 {[%emt 0:02:36]} 9. Bxf6 {[%emt 0:00:50]} exf6 10. O-O {[%emt 0:06:14]} Qe7 {[%emt 0:03:41]} 11. h3 {[%emt 0:04:59]} Bg7 {[%emt 0:01:56]} 12. Rad1 {[%emt 0:00:30]} c5 {[%emt 0:00:30]} 13. Qxd6 {[%emt 0:00:30]} Qxd6 {[%emt 0:00:30]} 14. Rxd6 {[%emt 0:00:30]} Ke7 {[%emt 0:00:30]} 15. Rfd1 {[%emt 0:00:30]} Be6 {[%emt 0:00:30]} 16. Rc6 {[%emt 0:00:30]} Rac8 {[%emt 0:00:30]} 17. Ra6 {[%emt 0:00:30]} Rc7 {[%emt 0:00:30]} 18. Nb5 {[%emt 0:00:30]} Rb7 {[%emt 0:00:30]} 19. Rxa7 {[%emt 0:00:30]} Rhb8 {[%emt 0:00:30]} 20. a4 {[%emt 0:00:30]} Bd7 {[%emt 0:00:30]} 21. Rxb7 {[%emt 0:00:30]} Rxb7 {[%emt 0:00:30]} 22. c4 {[%emt 0:00:30]} f5 {[%emt 0:00:30]} 23. e5 {[%emt 0:00:30]} Bxb5 {[%emt 0:00:30]} 24. cxb5 {[%emt 0:00:30]} Rd7 {[%emt 0:00:30]} 25. Rxd7+ {[%emt 0:00:30]} Kxd7 {[%emt 0:00:30]} 26. Kh2 {[%emt 0:00:30]} f6 {[%emt 0:00:30]} 27. exf6 {[%emt 0:00:30]} Bxf6 {[%emt 0:00:30]} 28. b3 {[%emt 0:00:30]} Bc3 {[%emt 0:00:30]} 29. Kg3 {[%emt 0:00:30]} Kc7 {[%emt 0:00:30]} 30. Kf4 {[%emt 0:00:30]} h6 {[%emt 0:00:30]} 31. Ne5 {[%emt 0:00:30]} Bd2+ {[%emt 0:00:30]} 32. Kf3 {[%emt 0:00:30]} g5 {[%emt 0:00:30]} 33. Ke2 {[%emt 0:00:30]} Bf4 {[%emt 0:00:30]} 34. Nc6 {[%emt 0:00:30]} g4 {[%emt 0:00:30]} 35. h4 {[%emt 0:00:30]} Bd6 {[%emt 0:33:29]} 36. Kd3 {[%emt 0:28:24]} Bf8 {[%emt 0:01:06]} 37. Kc4 {[%emt 0:00:26]} f4 {[%emt 0:01:11]} 38. Kd5 {[%emt 0:01:03]} h5 {[%emt 0:00:49]} 39. Ke6 {[%emt 0:43:22]} c4 {[%emt 0:01:07]} 40. bxc4 {[%emt 0:00:00]} Bc5 {[%emt 0:00:38]} 41. f3 {[%emt 0:00:00]} Bf2 {[%emt 0:00:43]} 42. Kf5 {[%emt 0:00:00]} Bxh4 {[%emt 0:00:47]} 43. fxg4 {[%emt 0:00:00]} hxg4 44. Kxf4 {[%emt 0:00:00]} Kb6 {[%emt 0:00:46]} 45. Kxg4 {[%emt 0:00:00]} Be1 {[%emt 0:00:39]} 46. Kf5 {[%emt 0:00:00]} Bh4 {[%emt 0:44:46]} 47. Kg4 {[%emt 0:00:00]} Be1 {[%emt 0:00:00]} 48. Kf5 {[%emt 0:00:00]} Kc5 {[%emt 0:00:00]} 49. a5 {[%emt 0:00:00]} Bf2 {[%emt 0:00:00]} 50. Ne5 {[%emt 0:00:00]} Bh4 {[%emt 0:00:00]} 51. g4 {[%emt 0:00:00]} Bd8 {[%emt 0:00:00]} 52. a6 {[%emt 0:00:00]} Kb6 {[%emt 0:00:00]} 53. g5 {[%emt 0:00:00]} Bxg5 {[%emt 0:00:00]} 54. Kxg5 {[%emt 0:00:00]} Ka7 {[%emt 0:00:00]} 55. c5 {[%emt 0:00:00]} Ka8 {[%emt 0:00:00]} 56. b6 {[%emt 0:00:00]} Kb8 {[%emt 0:00:00]} 57. b7 {[%emt 0:00:00]} Ka7 {[%emt 0:00:00]} 58. Nd7 {[%emt 0:00:00] Kb6 Ne5+ Ka7 Nd7 Kb6 Ne5+ Ka7 Nd7} Kxa6 {[%emt 0:00:00]} 59. b8=Q {[%emt 0:00:00]} Ka5 {[%emt 0:00:00]} 60. Qb3 {[%emt 0:00:00]} Ka6 {[%emt 0:00:00]} 61. Qb6# {[%emt 0:00:00]} 1-0

[Event "FIDE WCCC Open-08 2024"]
[Site "Montesilvano"]
[Date "2024.11.18"]
[Round "3.32"]
[White "Vrsalovic Acuna. Stjepan Anton"]
[Black "Morais, Benjamin Guedes"]
[Result "1/2-1/2"]
[ECO "B17"]
[WhiteElo "1452"]
[BlackElo "1652"]
[PlyCount "303"]
[EventDate "2024.11.18"]
[EventType "swiss"]
[EventCountry "ITA"]
[TimeControl "5400+30"]

1. e4 {[%emt 0:00:03]} c6 {[%emt 0:00:09]} 2. d4 {[%emt 0:00:07]} d5 {[%emt 0:00:10]} 3. Nc3 {[%emt 0:00:09]} dxe4 {[%emt 0:00:14]} 4. Nxe4 {[%emt 0:00:09]} Nd7 {[%emt 0:00:14]} 5. Nf3 {[%emt 0:00:08]} Ngf6 6. Nxf6+ {[%emt 0:02:16]} Nxf6 {[%emt 0:00:21]} 7. Be2 {[%emt 0:02:56]} Bg4 {[%emt 0:00:40]} 8. O-O {[%emt 0:00:24]} e6 {[%emt 0:00:18]} 9. Be3 {[%emt 0:01:09]} Be7 {[%emt 0:00:29]} 10. c4 {[%emt 0:00:34]} O-O 11. Qc2 {[%emt 0:00:19]} Bf5 {[%emt 0:01:28]} 12. Bd3 Bxd3 {[%emt 0:03:58]} 13. Qxd3 {[%emt 0:01:43]} c5 14. Rad1 {[%emt 0:03:32]} Qc7 15. dxc5 {[%emt 0:02:27]} Bxc5 {[%emt 0:09:28]} 16. Bxc5 {[%emt 0:00:47]} Qxc5 {[%emt 0:00:15]} 17. Qc3 {[%emt 0:00:21]} Rac8 {[%emt 0:01:27]} 18. b3 {[%emt 0:00:34]} b5 {[%emt 0:01:09]} 19. Rc1 {[%emt 0:00:57]} Rc7 {[%emt 0:00:53]} 20. Qb2 {[%emt 0:01:52]} Rb7 {[%emt 0:01:46]} 21. cxb5 {[%emt 0:02:01]} Qxb5 {[%emt 0:00:13]} 22. Rc2 {[%emt 0:02:34]} Rd7 {[%emt 0:04:35]} 23. Rd2 {[%emt 0:01:29]} Rfd8 {[%emt 0:01:00]} 24. Rfd1 {[%emt 0:01:26]} Rf8 {[%emt 0:00:00]} 25. Rf1 {[%emt 0:00:00]} Rfd8 {[%emt 0:01:00]} 26. Rfd1 {[%emt 0:01:00]} Rf8 {[%emt 0:00:00]} 27. Rf1 {[%emt 0:00:00]} Rfd8 {[%emt 0:01:00]} 28. Rfd1 {[%emt 0:01:00]} h6 {[%emt 0:07:16]} 29. h3 {[%emt 0:00:21]} Rd5 {[%emt 1:06:57]} 30. Rxd5 {[%emt 0:05:41]} Rxd5 {[%emt 0:00:00]} 31. Rxd5 {[%emt 0:00:12]} Qxd5 {[%emt 0:00:00]} 32. Qd4 {[%emt 0:00:18]} Qxd4 {[%emt 0:00:00]} 33. Nxd4 {[%emt 0:00:08]} Nd5 {[%emt 0:00:00]} 34. Nc6 {[%emt 0:00:11]} a6 {[%emt 0:00:00]} 35. Nb8 {[%emt 0:00:32]} Nc3 {[%emt 0:00:00]} 36. a4 {[%emt 0:00:24]} Ne2+ {[%emt 0:00:00]} 37. Kf1 {[%emt 0:00:46]} Nd4 {[%emt 0:00:00]} 38. Kg1 {[%emt 0:00:14]} Ne2+ {[%emt 0:00:00]} 39. Kf1 {[%emt 0:00:46]} Nd4 40. b4 {[%emt 0:00:35]} Kf8 {[%emt 0:00:00]} 41. Nxa6 {[%emt 0:00:21]} Ke7 {[%emt 0:00:00]} 42. Nb8 {[%emt 0:00:39]} Kf8 43. Na6 {[%emt 0:00:21]} Ke7 {[%emt 0:00:00]} 44. b5 {[%emt 0:00:38]} Kd6 {[%emt 0:07:30]} 45. f3 {[%emt 1:10:56]} f5 {[%emt 0:00:00]} 46. Kf2 {[%emt 0:00:00]} e5 {[%emt 0:00:00]} 47. Nb4 {[%emt 0:00:00]} Kc5 {[%emt 0:00:00]} 48. Nd3+ {[%emt 0:00:00]} Kd5 {[%emt 0:00:00]} 49. b6 {[%emt 0:00:00]} Nc6 {[%emt 0:00:00]} 50. b7 {[%emt 0:00:00]} Nb8 51. a5 {[%emt 0:00:00]} Kd4 {[%emt 0:00:00]} 52. Nb4 {[%emt 0:00:00]} Kc5 {[%emt 0:00:00]} 53. a6 {[%emt 0:00:00]} Kb6 {[%emt 0:00:00]} 54. Ke3 {[%emt 0:00:00]} g5 {[%emt 0:00:00]} 55. g4 {[%emt 0:00:00]} f4+ {[%emt 0:00:00]} 56. Ke4 {[%emt 0:00:00]} Nd7 {[%emt 0:00:00] Ke3 Nb8+ Ke4 Nd7} 57. b8=Q+ {[%emt 0:00:00]} Nxb8 {[%emt 0:00:00]} 58. Kxe5 {[%emt 0:00:00]} Nxa6 {[%emt 0:00:00]} 59. Nxa6 {[%emt 0:00:00]} Kxa6 60. Kf5 {[%emt 0:00:00]} Kb5 {[%emt 0:00:00]} 61. Kg6 {[%emt 0:00:00]} Kc4 {[%emt 0:00:00]} 62. Kxh6 {[%emt 0:00:00]} Kd3 {[%emt 0:00:00]} 63. Kxg5 {[%emt 0:00:00]} Ke3 {[%emt 0:00:00]} 64. h4 {[%emt 0:00:00]} Kxf3 {[%emt 0:10:00]} 65. h5 {[%emt 0:00:00]} Kg3 {[%emt 0:00:00]} 66. h6 {[%emt 0:00:00]} f3 {[%emt 0:00:00]} 67. h7 {[%emt 0:00:00]} f2 {[%emt 0:00:00]} 68. h8=Q {[%emt 0:11:30]} f1=Q {[%emt 0:02:00]} 69. Qc3+ {[%emt 0:00:00]} Kg2 {[%emt 0:00:00]} 70. Qd2+ {[%emt 0:00:00]} Kg3 {[%emt 0:00:00]} 71. Qc3+ {[%emt 0:00:00]} Kg2 {[%emt 0:00:00]} 72. Qd2+ {[%emt 0:00:00]} Kg3 {[%emt 0:00:00]} 73. Qc3+ {[%emt 0:00:00]} Kg2 {[%emt 0:00:00]} 74. Qd2+ {[%emt 0:00:00]} Kg3 75. Qe3+ Kg2 {[%emt 0:00:00]} 76. Qf4 {[%emt 0:00:00]} Qb5+ {[%emt 0:00:00]} 77. Qf5 {[%emt 0:00:00]} Qe2 {[%emt 0:00:00]} 78. Kg6 {[%emt 0:00:00]} Qe8+ {[%emt 0:00:00]} 79. Kg5 {[%emt 0:00:00]} Qe3+ {[%emt 0:00:00]} 80. Kg6 {[%emt 0:00:00]} Qe8+ {[%emt 0:00:00]} 81. Qf7 {[%emt 0:00:00]} Qb5 {[%emt 0:00:00]} 82. Qf5 {[%emt 0:00:00]} Qe8+ {[%emt 0:00:00]} 83. Kg5 {[%emt 0:00:00]} Qe3+ {[%emt 0:00:00]} 84. Kg6 {[%emt 0:00:00]} Qe8+ {[%emt 0:00:00]} 85. Qf7 {[%emt 0:00:00]} Qe4+ 86. Kh5 {[%emt 0:00:00]} Qe5+ {[%emt 0:00:00]} 87. g5 {[%emt 0:00:00]} Qh2+ {[%emt 0:00:00]} 88. Kg6 {[%emt 0:00:00]} Qd6+ {[%emt 0:00:00]} 89. Qf6 {[%emt 0:00:00]} Qd3+ {[%emt 0:00:00] Qf7 Qd6+ Qf6 Qd3+} 90. Kg7 {[%emt 0:00:00]} Qd7+ {[%emt 0:00:00]} 91. Kh6 {[%emt 0:00:00]} Qh3+ {[%emt 0:00:00]} 92. Kg6 {[%emt 0:00:00]} Qd3+ {[%emt 0:00:00]} 93. Kg7 {[%emt 0:00:00]} Qd7+ {[%emt 0:00:00]} 94. Kh6 {[%emt 0:00:00]} Qh3+ {[%emt 0:00:00]} 95. Kg7 {[%emt 0:00:00]} Qd7+ {[%emt 0:00:00]} 96. Kg6 {[%emt 0:00:00]} Qd3+ {[%emt 0:00:00]} 97. Kg7 {[%emt 0:00:00]} Qd7+ {[%emt 0:00:00]} 98. Kh6 {[%emt 0:00:00]} Qh3+ {[%emt 0:00:00]} 99. Kg7 {[%emt 0:00:00]} Qd7+ 100. Qf7 {[%emt 0:00:00]} Qd4+ {[%emt 0:00:00]} 101. Kg6 {[%emt 0:00:00]} Qd6+ {[%emt 0:00:00]} 102. Qf6 {[%emt 0:00:00]} Qd3+ {[%emt 0:00:00]} 103. Kg7 {[%emt 0:00:00]} Qd7+ {[%emt 0:00:00]} 104. Kh6 {[%emt 0:00:00]} Qh3+ {[%emt 0:00:00]} 105. Kg7 {[%emt 0:00:00]} Qd7+ 106. Qf7 {[%emt 0:00:00]} Qd4+ {[%emt 0:00:00]} 107. Kh6 {[%emt 0:00:00]} Qh4+ {[%emt 0:00:00]} 108. Qh5 {[%emt 0:00:00]} Qf4 {[%emt 0:00:00]} 109. Kh7 {[%emt 0:00:00]} Qf5+ {[%emt 0:00:00]} 110. Qg6 {[%emt 0:00:00]} Qd7+ {[%emt 0:00:00]} 111. Qg7 {[%emt 0:00:00]} Qb5 {[%emt 0:00:00]} 112. Qg6 {[%emt 0:00:00]} Qd7+ {[%emt 0:00:00]} 113. Qg7 {[%emt 0:00:00]} Qh3+ 114. Kg8 {[%emt 0:00:00]} Qe3 {[%emt 0:00:00]} 115. Kh7 {[%emt 0:00:00]} Qh3+ 116. Kg8 {[%emt 0:00:00]} Qc8+ 117. Qf8 {[%emt 0:24:30]} Qe6+ {[%emt 0:00:00]} 118. Qf7 {[%emt 0:00:00]} Qc8+ {[%emt 0:00:00]} 119. Kg7 {[%emt 0:00:00]} Qc3+ {[%emt 0:00:00]} 120. Qf6 {[%emt 0:00:00]} Qc7+ {[%emt 0:00:00]} 121. Kh6 {[%emt 0:00:00]} Qh2+ {[%emt 0:00:00]} 122. Kg6 {[%emt 0:00:00]} Qc7 {[%emt 0:00:00]} 123. Qd4 {[%emt 0:00:00]} Qe7 {[%emt 0:00:00]} 124. Qf6 {[%emt 0:00:00]} Qd6 {[%emt 0:00:00]} 125. Kg7 {[%emt 0:00:00]} Qd7+ {[%emt 0:00:00]} 126. Kh6 {[%emt 0:00:00]} Qh3+ {[%emt 0:00:00]} 127. Kg7 {[%emt 0:00:00]} Qd7+ 128. Qf7 {[%emt 0:00:00]} Qd4+ {[%emt 0:00:00]} 129. Kh6 {[%emt 0:00:00]} Qh4+ {[%emt 0:00:00]} 130. Qh5 {[%emt 0:00:00]} Qf4 {[%emt 0:00:00]} 131. Kh7 {[%emt 0:00:00]} Qf5+ {[%emt 0:00:00]} 132. Qg6 {[%emt 0:00:00]} Qd7+ {[%emt 0:00:00]} 133. Qg7 {[%emt 0:00:00]} Qh3+ 134. Kg8 {[%emt 0:00:00]} Qc8+ 135. Qf8 Qe6+ {[%emt 0:00:00]} 136. Qf7 {[%emt 0:00:00]} Qc8+ {[%emt 0:00:00]} 137. Kg7 {[%emt 0:00:00]} Qc3+ {[%emt 0:00:00]} 138. Qf6 {[%emt 0:00:00]} Qc7+ {[%emt 0:00:00]} 139. Kh6 {[%emt 0:00:00]} Qh2+ {[%emt 0:00:00]} 140. Kg6 {[%emt 0:00:00]} Qc7 {[%emt 0:00:00]} 141. Qb2+ {[%emt 0:00:00]} Kg3 {[%emt 0:00:00]} 142. Qb3+ {[%emt 0:00:00]} Kg4 {[%emt 0:00:00]} 143. Qd1+ {[%emt 0:00:00]} Kg3 {[%emt 0:00:00]} 144. Qb3+ {[%emt 0:00:00]} Kg4 {[%emt 0:00:00]} 145. Qd1+ Kh4 {[%emt 0:00:00]} 146. Qh1+ {[%emt 0:00:00]} Kg4 {[%emt 0:00:00]} 147. Qg2+ {[%emt 0:00:00] Kg3 Qb2 Kg4 Qb3} Kh4 {[%emt 0:00:00] Qd1 Kg4} 148. Qh1+ {[%emt 0:00:00] Kh4 Qg2} Kg3 {[%emt 0:00:00] Qb2 Kg4 Qb3 Kh4} 149. Qd1 {[%emt 0:00:00] Kg4 Qh1} Kh4 {[%emt 0:00:00] Qg2 Kg3 Qb2 Kg4} 150. Qb3 {[%emt 0:00:00] Kh4 Qd1} Kg4 {[%emt 0:41:00] Qh1 Kh4 Qg2 Kg3} 151. Qb2 {[%emt 0:00:00] Kg4 Qb3} Kh4 {[%emt 0:00:00] Qd1 Kg4 Qh1 Kh4} 152. Qg2 {[%emt 0:00:00] Kg3 Qb2 Kg4 Qb3 Kh4 Qd1 Kg4 Qh1 Kh4 Qg2} 1/2-1/2

[Event "FIDE WCCC Open-08 2024"]
[Site "Montesilvano"]
[Date "2024.11.18"]
[Round "3.33"]
[White "Sverrisson, Dagur"]
[Black "Huzela, Lukyan"]
[Result "0-1"]
[ECO "B40"]
[WhiteElo "1449"]
[BlackElo "1651"]
[PlyCount "96"]
[EventDate "2024.11.18"]
[EventType "swiss"]
[EventCountry "ITA"]
[TimeControl "5400+30"]

1. e4 {[%emt 0:00:02]} c5 {[%emt 0:00:13]} 2. Nf3 {[%emt 0:00:20]} e6 {[%emt 0:00:05]} 3. d3 {[%emt 0:00:08]} Nc6 {[%emt 0:00:22]} 4. g3 {[%emt 0:00:13]} Nf6 {[%emt 0:00:14]} 5. Bg2 Be7 {[%emt 0:00:45]} 6. O-O {[%emt 0:00:20]} O-O {[%emt 0:00:09]} 7. Bg5 {[%emt 0:00:15]} d6 {[%emt 0:01:19]} 8. Bf4 {[%emt 0:00:17]} e5 {[%emt 0:00:20]} 9. Bg5 h6 {[%emt 0:02:26]} 10. Be3 {[%emt 0:00:21]} Ng4 {[%emt 0:00:31]} 11. h3 {[%emt 0:00:18]} Nxe3 {[%emt 0:00:14]} 12. fxe3 {[%emt 0:00:08]} Bg5 13. Nxg5 {[%emt 0:00:15]} Qxg5 {[%emt 0:01:56]} 14. Qf3 {[%emt 0:00:16]} Be6 {[%emt 0:00:28]} 15. c3 {[%emt 0:00:09]} f5 {[%emt 0:00:08]} 16. h4 {[%emt 0:00:13]} Qg6 {[%emt 0:00:11]} 17. h5 {[%emt 0:00:10]} Qg5 {[%emt 0:00:10]} 18. Nd2 {[%emt 0:00:15]} Bf7 {[%emt 0:00:48]} 19. Qxf5 {[%emt 0:00:44]} Qxe3+ {[%emt 0:00:09]} 20. Qf2 Qxf2+ {[%emt 0:01:53]} 21. Rxf2 {[%emt 0:00:31]} Bxh5 {[%emt 0:00:30]} 22. Raf1 b5 {[%emt 0:01:02]} 23. d4 {[%emt 0:00:33]} cxd4 {[%emt 0:00:31]} 24. cxd4 {[%emt 0:00:28]} Nxd4 25. b4 {[%emt 0:03:04]} Ne2+ {[%emt 0:01:02]} 26. Kh2 {[%emt 0:00:12]} Rxf2 {[%emt 0:01:10]} 27. Rxf2 {[%emt 0:00:11]} Rf8 {[%emt 0:00:21]} 28. Nf3 {[%emt 0:00:30]} Nd4 {[%emt 0:00:30]} 29. g4 {[%emt 0:00:30]} Bxg4 {[%emt 0:00:30]} 30. Kg3 {[%emt 0:00:30]} Bxf3 {[%emt 0:00:30]} 31. Bxf3 {[%emt 0:00:30]} Rxf3+ 32. Rxf3 {[%emt 0:00:30]} Nxf3 {[%emt 0:01:00]} 33. Kxf3 {[%emt 0:00:00]} g5 {[%emt 0:00:05]} 34. Kg4 {[%emt 0:00:00]} Kg7 {[%emt 0:00:07]} 35. Kh5 {[%emt 0:00:00]} Kf6 {[%emt 0:00:23]} 36. Kg4 {[%emt 0:00:00]} Kg6 {[%emt 0:00:00]} 37. Kg3 {[%emt 0:00:12]} Kh5 {[%emt 0:00:01]} 38. Kh3 {[%emt 0:00:12]} g4+ {[%emt 0:00:00]} 39. Kg2 {[%emt 0:00:14]} Kh4 {[%emt 0:00:00]} 40. a3 {[%emt 0:00:45]} g3 {[%emt 0:00:06]} 41. Kg1 {[%emt 0:00:18]} Kh3 {[%emt 0:00:05]} 42. Kh1 {[%emt 0:00:24]} g2+ {[%emt 0:00:00]} 43. Kg1 {[%emt 0:00:09]} Kg3 {[%emt 0:00:01]} 44. a4 {[%emt 0:00:24]} bxa4 {[%emt 0:00:01]} 45. b5 {[%emt 0:00:09]} a3 {[%emt 0:00:00]} 46. b6 {[%emt 0:00:23]} a2 {[%emt 0:00:06]} 47. b7 {[%emt 0:00:55]} a1=B {[%emt 0:00:06]} 48. b8=N {[%emt 0:00:21]} Bd4# {[%emt 0:00:09]} 0-1

[Event "FIDE WCCC Open-08 2024"]
[Site "Montesilvano"]
[Date "2024.11.18"]
[Round "3.34"]
[White "Kortmann, Pedro Reck"]
[Black "Pera, Mikolaj"]
[Result "0-1"]
[ECO "B22"]
[WhiteElo "1630"]
[BlackElo "1446"]
[PlyCount "62"]
[EventDate "2024.11.18"]
[EventType "swiss"]
[EventCountry "ITA"]
[TimeControl "5400+30"]

1. e4 {[%emt 0:00:05]} c5 {[%emt 0:00:12]} 2. c3 {[%emt 0:00:12]} d5 {[%emt 0:00:24]} 3. exd5 {[%emt 0:00:40]} Qxd5 {[%emt 0:00:12]} 4. d4 {[%emt 0:01:19]} e6 {[%emt 0:00:10]} 5. Nf3 {[%emt 0:00:44]} Nf6 {[%emt 0:00:14]} 6. Bd3 {[%emt 0:00:31]} Nc6 {[%emt 0:02:03]} 7. O-O {[%emt 0:00:23]} Be7 {[%emt 0:00:17]} 8. Re1 {[%emt 0:00:07]} O-O {[%emt 0:01:51]} 9. Bf4 {[%emt 0:01:15]} Rd8 10. Be3 b6 {[%emt 0:07:43]} 11. Bb5 {[%emt 0:04:46]} Bb7 {[%emt 0:00:48]} 12. Bxc6 {[%emt 0:01:51]} Qxc6 {[%emt 0:00:35]} 13. Nbd2 {[%emt 0:04:03]} Rac8 {[%emt 0:00:58]} 14. Qe2 {[%emt 0:13:15]} h6 {[%emt 0:14:01]} 15. Qf1 {[%emt 0:01:43]} Qd5 {[%emt 0:00:51]} 16. c4 {[%emt 0:01:11]} Qd6 {[%emt 0:00:22]} 17. dxc5 {[%emt 0:01:51]} bxc5 {[%emt 0:00:06]} 18. Rad1 {[%emt 0:00:49]} Qc7 {[%emt 0:00:29]} 19. h3 {[%emt 0:05:01]} Ba6 {[%emt 0:05:12]} 20. Nb3 {[%emt 0:01:03]} Nd5 21. Qe2 {[%emt 0:03:14]} Nxe3 {[%emt 0:11:11]} 22. Rxd8+ {[%emt 0:00:48]} Rxd8 {[%emt 0:00:30]} 23. fxe3 {[%emt 0:00:25]} Qd6 {[%emt 0:04:08]} 24. Qd2 {[%emt 0:03:34]} Bxc4 {[%emt 0:01:08]} 25. Qxd6 {[%emt 0:00:45]} Bxd6 {[%emt 0:00:20]} 26. Rd1 {[%emt 0:01:04]} Bxb3 {[%emt 0:00:25]} 27. Ra1 {[%emt 0:01:26]} Bd5 {[%emt 0:00:11]} 28. Nd2 {[%emt 0:01:23]} Be5 {[%emt 0:00:38]} 29. Nb3 {[%emt 0:51:32]} Bxb2 {[%emt 0:00:28]} 30. Rb1 {[%emt 0:00:00]} Bxb3 {[%emt 0:00:03]} 31. axb3 {[%emt 0:00:00]} Bc3 {[%emt 0:00:12]} 0-1

[Event "FIDE WCCC Open-08 2024"]
[Site "Montesilvano"]
[Date "2024.11.18"]
[Round "3.35"]
[White "Lee, David J"]
[Black "Nguyen Phuc Cao Danh"]
[Result "0-1"]
[ECO "B54"]
[WhiteElo "1446"]
[BlackElo "1627"]
[PlyCount "104"]
[EventDate "2024.11.18"]
[EventType "swiss"]
[EventCountry "ITA"]
[TimeControl "5400+30"]

1. e4 {[%emt 0:03:38]} c5 {[%emt 0:00:10]} 2. Nf3 {[%emt 0:00:09]} d6 {[%emt 0:00:07]} 3. Bc4 Nc6 {[%emt 0:00:55]} 4. d4 {[%emt 0:03:18]} cxd4 {[%emt 0:00:20]} 5. Nxd4 {[%emt 0:00:05]} g6 {[%emt 0:00:43]} 6. Nxc6 {[%emt 0:05:28]} bxc6 {[%emt 0:00:14]} 7. Qd4 Nf6 {[%emt 0:03:07]} 8. e5 {[%emt 0:03:52]} Qa5+ 9. Bd2 {[%emt 0:00:21]} Qxe5+ {[%emt 0:00:20]} 10. Qxe5 {[%emt 0:00:04]} dxe5 {[%emt 0:00:12]} 11. Bc3 {[%emt 0:00:26]} Nd7 {[%emt 0:14:34]} 12. Nd2 {[%emt 0:01:39]} Bg7 {[%emt 0:03:54]} 13. O-O-O {[%emt 0:00:58]} O-O {[%emt 0:03:54]} 14. h4 {[%emt 0:01:07]} Nb6 {[%emt 0:01:44]} 15. Bb3 {[%emt 0:00:27]} Bf5 {[%emt 0:01:50]} 16. Rdg1 {[%emt 0:02:47]} Nd5 {[%emt 0:02:33]} 17. Bxd5 {[%emt 0:00:36]} cxd5 {[%emt 0:00:22]} 18. g4 {[%emt 0:00:13]} Be6 19. Nf3 {[%emt 0:14:28]} f6 {[%emt 0:02:11]} 20. h5 {[%emt 0:00:42]} Rfc8 {[%emt 0:05:57]} 21. g5 {[%emt 0:01:35]} d4 22. Bd2 {[%emt 0:01:38]} f5 {[%emt 0:02:11]} 23. hxg6 {[%emt 0:02:29]} hxg6 {[%emt 0:00:15]} 24. Nh4 {[%emt 0:01:02]} Kf7 25. Kb1 {[%emt 0:12:18]} Rab8 {[%emt 0:02:39]} 26. Nf3 {[%emt 0:04:45]} Bd5 27. Rh3 {[%emt 0:02:06]} Rh8 {[%emt 0:02:16]} 28. Rxh8 {[%emt 0:00:20]} Rxh8 {[%emt 0:00:23]} 29. Ne1 {[%emt 0:00:28]} e4 {[%emt 0:01:18]} 30. Bf4 e5 {[%emt 0:00:16]} 31. Bd2 {[%emt 0:02:52]} Rh2 {[%emt 0:00:22]} 32. Kc1 {[%emt 0:03:22]} Rxf2 {[%emt 0:00:44]} 33. Bb4 {[%emt 0:00:24]} Bf8 {[%emt 0:01:42]} 34. Bxf8 {[%emt 0:00:26]} Kxf8 {[%emt 0:00:08]} 35. Rh1 {[%emt 0:01:52]} Kg7 {[%emt 0:00:14]} 36. a4 {[%emt 0:06:48]} e3 37. Rh3 {[%emt 0:00:02]} Be4 {[%emt 0:02:27]} 38. Kd1 {[%emt 0:00:40]} Rd2+ {[%emt 0:00:17]} 39. Kc1 {[%emt 0:00:02]} Re2 {[%emt 0:00:13]} 40. Kd1 {[%emt 0:00:21]} Rf2 {[%emt 0:00:35]} 41. b4 {[%emt 0:00:24]} f4 {[%emt 0:00:40]} 42. b5 {[%emt 0:00:45]} Bf5 {[%emt 0:01:39]} 43. Rh1 {[%emt 0:02:08]} f3 {[%emt 0:00:17]} 44. a5 {[%emt 0:00:16]} Rd2+ {[%emt 0:00:28]} 45. Kc1 {[%emt 0:00:23]} f2 {[%emt 0:00:15]} 46. Nd3 {[%emt 0:00:03]} Be4 {[%emt 0:00:35]} 47. Nxf2 {[%emt 0:26:13]} Rxc2+ {[%emt 0:00:23]} 48. Kd1 {[%emt 0:00:00]} Rxf2 {[%emt 0:00:39]} 49. Re1 {[%emt 0:00:00]} Bf3+ {[%emt 0:00:20]} 50. Kc1 {[%emt 0:00:00]} d3 {[%emt 0:00:14]} 51. Rxe3 {[%emt 0:00:00]} d2+ {[%emt 0:00:10]} 52. Kb1 {[%emt 0:00:00]} d1=Q# {[%emt 0:00:10]} 0-1